fUSD/lending_fUSD_20250722
["ID","MTS","AMOUNT","RATE_DAILY","PERIOD"]
[374134639,1753224640824,-559.29910245,0.00030105,2]
[374134659,1753224643298,-485.305,0.00030105,2]
[374134661,1753224643386,-7891.20670316,0.00030105,2]
[374134662,1753224643406,-42299.39579032,0.00030105,2]
[374134663,1753224643418,-1706.54360803,0.00030105,2]
[374134664,1753224643626,-5104.7650041,0.00030105,2]
[374134665,1753224643636,-3753.1320244,0.00030106,2]
[374134666,1753224643648,-659.55599547,0.00030106,2]
[374134667,1753224643660,-2035.92647066,0.00030106,2]
[374134668,1753224643672,-534.3999998,0.00030106,2]
[374134669,1753224643728,-9052.67802607,0.00030106,2]
[374134674,1753224646509,-3721.245,0.00030106,2]
[374134675,1753224646666,-1150.88,0.00030106,2]
[374134676,1753224646678,-29117.439,0.00030106,2]
[374134677,1753224646754,-3529.26270959,0.00030106,2]
[374134678,1753224646766,-2447.13085106,0.00030106,2]
[374134679,1753224698492,152.6,0.00013699,2]
[374134690,1753224905231,-151.33,0.00018,2]
[374134691,1753224911010,-350.67,0.00018,2]
[374134693,1753225006872,-2000.0,0.00018,2]
[374134694,1753225137845,1500.0,0.0002665,120]
[374134722,1753225719939,152.92,0.00013699,2]
[374134724,1753225765667,342.6,0.00027184,120]
[374134729,1753225831919,-745.56121322,0.00018,2]
[374134731,1753225831930,-300.0,0.00019,2]
[374134733,1753225831939,-300.0,0.000198,2]
[374134735,1753225831948,-150.0,0.0002,2]
[374134736,1753225831958,-305.45,0.00020978,2]
[374134737,1753225831968,-150.0,0.0002122,2]
[374134738,1753225831980,-211.93971334,0.00021241,2]
[374134739,1753225831989,-304.39,0.00021341,2]
[374134740,1753225831999,-304.65,0.00021341,2]
[374134741,1753225832008,-300.04,0.00021638,2]
[374134742,1753225832018,-300.8,0.00021771,2]
[374134743,1753225832027,-304.21,0.0002196,2]
[374134744,1753225832036,-160.87,0.00022,4]
[374134745,1753225832046,-302.56,0.0002209,2]
[374134746,1753225832056,-336.68,0.00022238,2]
[374134747,1753225832066,-300.97,0.00022318,2]
[374134748,1753225832076,-301.33,0.00022431,2]
[374134749,1753225832086,-260.0,0.0002245,2]
[374134750,1753225832098,-304.13,0.00022713,2]
[374134751,1753225832108,-300.65,0.0002279,2]
[374134752,1753225832119,-302.28,0.00023161,2]
[374134753,1753225832129,-303.75,0.00023161,2]
[374134754,1753225832139,-1200.0,0.00023532,2]
[374134755,1753225832148,-1782.988344,0.00023533,2]
[374134756,1753225832158,-300.97,0.00023653,2]
[374134757,1753225832168,-305.05,0.00023653,2]
[374134758,1753225832180,-302.04,0.00023653,2]
[374134759,1753225832191,-221.97,0.00023654,2]
[374134760,1753225832201,-305.96,0.00023654,2]
[374134761,1753225832211,-301.02,0.00023654,2]
[374134762,1753225832221,-302.79,0.00023654,2]
[374134763,1753225832230,-302.19,0.00023654,2]
[374134764,1753225832240,-304.76,0.00023655,2]
[374134765,1753225832250,-302.5,0.00023655,2]
[374134766,1753225832260,-305.29,0.00023664,2]
[374134768,1753225832269,-303.72,0.00023664,2]
[374134769,1753225832279,-300.47,0.00023764,2]
[374134770,1753225832289,-300.13,0.00023764,2]
[374134771,1753225832299,-294.24546117,0.000239,10]
[374134772,1753225832310,-294.24546093,0.00024141,10]
[374134773,1753225832322,-342.6,0.00024164,2]
[374134774,1753225832331,-300.63,0.0002423,2]
[374134775,1753225832341,-302.22,0.0002423,2]
[374134776,1753225832351,-253.0,0.00024292,2]
[374134777,1753225832361,-294.24546093,0.00024383,11]
[374134778,1753225832370,-1000.0,0.00024513,2]
[374134779,1753225832380,-666.0,0.00024608,3]
[374134780,1753225832390,-294.24546093,0.00024624,11]
[374134781,1753225832400,-172.57,0.0002466,2]
[374134782,1753225832410,-1386.97,0.00024858,2]
[374134783,1753225832420,-294.24546093,0.00024866,12]
[374134784,1753225832429,-1274.0,0.00024938,2]
[374134785,1753225832439,-1458.0,0.00025062,2]
[374134786,1753225832448,-294.24546093,0.00025107,12]
[374134787,1753225832457,-443.94455402,0.00025141,2]
[374134788,1753225832467,-1748.0,0.00025186,2]
[374134789,1753225832476,-401.0,0.00025278,2]
[374134790,1753225832485,-150.93,0.00025346,2]
[374134791,1753225832495,-294.24546093,0.00025348,13]
[374134792,1753225832504,-150.93,0.00025364,2]
[374134793,1753225832513,-41.69259001,0.00025364,2]
[374134794,1753225832526,-108.30740999,0.00025364,2]
[374134795,1753225832536,-500.0,0.00025364,2]
[374134796,1753225832545,-500.0,0.00025364,2]
[374134797,1753225832554,-200.0,0.00025364,2]
[374134798,1753225832564,-150.0,0.00025364,2]
[374134799,1753225832573,-500.0,0.00025364,2]
[374134800,1753225832583,-150.0,0.00025364,2]
[374134801,1753225832593,-150.0,0.00025364,2]
[374134802,1753225832602,-150.0,0.00025364,2]
[374134803,1753225832611,-500.0,0.00025364,2]
[374134804,1753225832620,-150.93,0.00025382,2]
[374134805,1753225832630,-221.97,0.00025384,2]
[374134806,1753225832640,-150.93,0.000254,2]
[374134807,1753225832649,-1092.0,0.00025404,2]
[374134808,1753225832658,-1640.49425098,0.00025411,2]
[374134809,1753225832670,-261.77574902,0.00025411,2]
[374134810,1753225832680,-150.93,0.00025418,2]
[374134811,1753225832690,-150.93,0.00025436,2]
[374134812,1753225832699,-150.93,0.00025454,2]
[374134813,1753225832710,-150.93,0.00025472,2]
[374134814,1753225832720,-150.93,0.0002549,2]
[374134815,1753225832730,-150.93,0.00025509,2]
[374134816,1753225832740,-150.93,0.00025527,2]
[374134817,1753225832750,-887.59631544,0.00025529,2]
[374134819,1753225838506,-160.40368456,0.00025529,2]
[374134820,1753225838517,-150.93,0.00025545,2]
[374134821,1753225838527,-150.93,0.00025563,2]
[374134822,1753225838537,-150.93,0.00025581,2]
[374134823,1753225838547,-294.24546093,0.0002559,13]
[374134824,1753225838556,-150.93,0.00025599,2]
[374134825,1753225838567,-250.0,0.00025638,2]
[374134826,1753225838576,-500.0,0.00025638,2]
[374134827,1753225838586,-552.51600869,0.00025638,2]
[374134828,1753225838595,-200.0,0.00025638,2]
[374134829,1753225838605,-500.0,0.00025638,2]
[374134830,1753225838615,-250.0,0.00025638,2]
[374134831,1753225838625,-108.63111572,0.00025638,2]
[374134924,1753225839602,-41.36888428,0.00025638,2]
[374134926,1753225839612,-150.0,0.00025638,2]
[374134928,1753225839621,-500.0,0.00025638,2]
[374134930,1753225839632,-942.0,0.00025649,2]
[374134932,1753225839641,-725.0,0.00025655,2]
[374134934,1753225839651,-412.87,0.00025823,2]
[374134936,1753225839660,-294.24546093,0.00025831,13]
[374134938,1753225839671,-172.57,0.00025893,2]
[374134941,1753225839681,-500.0,0.00025912,2]
[374134943,1753225839691,-500.0,0.00025912,2]
[374134945,1753225839700,-214.0,0.00025912,2]
[374134947,1753225839710,-150.0,0.00025912,2]
[374134949,1753225839719,-500.0,0.00025912,2]
[374134951,1753225839729,-152.92,0.00026027,2]
[374134953,1753225839738,-294.24546093,0.00026072,14]
[374134954,1753225839747,-500.0,0.00026186,2]
[374134956,1753225839757,-500.0,0.00026186,2]
[374134959,1753225839767,-250.0,0.00026186,2]
[374134961,1753225839776,-200.0,0.00026186,2]
[374134963,1753225839786,-294.24546093,0.00026314,14]
[374134964,1753225839795,-166.48,0.00026322,2]
[374134966,1753225839804,-363.0,0.00026453,2]
[374134968,1753225839813,-500.0,0.0002646,2]
[374134970,1753225839822,-500.0,0.0002646,2]
[374134972,1753225839831,-541.96,0.00026492,2]
[374134974,1753225839841,-168.0,0.00026554,2]
[374134976,1753225839851,-294.24546093,0.00026555,15]
[374134978,1753225839860,-500.0,0.00026734,2]
[374134980,1753225839870,-500.0,0.00026734,2]
[374134982,1753225839879,-483.71376228,0.00026775,2]
[374134984,1753225839889,-4684.93,0.00026776,7]
[374134986,1753225839898,-294.24546093,0.00026797,15]
[374134988,1753225839908,-500.0,0.00027008,2]
[374134990,1753225839917,-500.0,0.00027008,2]
[374134992,1753225839927,-294.24546093,0.00027038,16]
[374134994,1753225839936,-221.97,0.00027114,2]
[374134996,1753225839946,-172.57,0.00027126,2]
[374134998,1753225839955,-294.24546093,0.00027279,16]
[374134999,1753225839965,-493.33220183,0.00027282,2]
[374135000,1753225839974,-500.0,0.00027282,2]
[374135001,1753225839984,-176.74,0.00027301,2]
[374135002,1753225839993,-249.0,0.00027331,2]
[374135003,1753225840002,-251.0,0.00027393,2]
[374135004,1753225840011,-1095.73,0.00027425,30]
[374135005,1753225840020,-294.24546093,0.00027521,17]
[374135006,1753225840029,-500.0,0.00027556,2]
[374135007,1753225840038,-1000.0,0.00027577,2]
[374135008,1753225840047,-386.22100714,0.00027657,11]
[374135009,1753225840056,-517.0,0.00027671,2]
[374135010,1753225840065,-404.01,0.0002769,2]
[374135011,1753225840074,-294.24546093,0.00027762,17]
[374135013,1753225840084,-249.0,0.00027783,7]
[374135015,1753225840093,-2751.0,0.000278,2]
[374135017,1753225840103,-500.0,0.0002783,2]
[374135019,1753225840113,-167.95,0.0002795,2]
[374135021,1753225840123,-294.24546093,0.00028003,18]
[374135023,1753225840132,-150.0,0.00028004,18]
[374135025,1753225840142,-500.0,0.00028104,2]
[374135027,1753225840152,-226.69,0.00028111,2]
[374135029,1753225840162,-150.72,0.00028121,2]
[374135031,1753225840171,-249.0,0.00028127,2]
[374135033,1753225840182,-9411.16,0.00028203,2]
[374135035,1753225840191,-294.24546093,0.00028245,18]
[374135037,1753225840202,-168.0,0.00028349,2]
[374135039,1753225840212,-172.57,0.00028359,2]
[374135041,1753225840222,-249.0,0.00028372,2]
[374135043,1753225840231,-500.0,0.00028378,2]
[374135045,1753225840241,-168.0,0.00028452,2]
[374135047,1753225840250,-294.24546093,0.00028486,19]
[374135049,1753225840259,-1169.46788239,0.00028489,15]
[374135051,1753225840269,-9961.16196022,0.0002849,2]
[374135054,1753225840281,-254.3252706,0.0002849,2]
[374135059,1753225840327,-421.7316,0.0002849,2]
[374135061,1753225840339,-7021.26116918,0.0002849,2]
[374135063,1753225840349,-249.0,0.00028521,7]
[374135065,1753225840359,-249.0,0.00028524,2]
[374135067,1753225840370,-169.82262126,0.00028633,2]
[374135069,1753225840379,-500.0,0.00028633,2]
[374135071,1753225840389,-500.0,0.00028633,2]
[374135073,1753225840398,-500.0,0.00028633,2]
[374135075,1753225840408,-500.0,0.00028633,2]
[374135077,1753225840419,-231.28369723,0.00028633,2]
[374135079,1753225840428,-500.0,0.00028633,2]
[374135081,1753225840437,-500.0,0.00028633,2]
[374135083,1753225840446,-500.0,0.00028633,2]
[374135085,1753225840455,-500.0,0.00028633,2]
[374135087,1753225840465,-4031.856,0.00028633,2]
[374135089,1753225840474,-500.0,0.00028633,2]
[374135091,1753225840484,-500.0,0.00028633,2]
[374135093,1753225840493,-500.0,0.00028633,2]
[374135095,1753225840503,-500.0,0.00028633,2]
[374135097,1753225840513,-500.0,0.00028633,2]
[374135099,1753225840522,-500.0,0.00028633,2]
[374135102,1753225840532,-500.0,0.00028633,2]
[374135104,1753225840542,-500.0,0.00028633,2]
[374135106,1753225840551,-346.92554585,0.00028633,2]
[374135108,1753225840560,-350.34,0.00028644,2]
[374135110,1753225840571,-500.0,0.00028652,2]
[374135112,1753225840580,-883.0,0.00028657,7]
[374135114,1753225840590,-294.24546093,0.00028728,19]
[374135116,1753225840600,-249.0,0.00028754,2]
[374135118,1753225840609,-221.97,0.00028845,2]
[374135120,1753225840618,-404.01,0.00028903,2]
[374135122,1753225840628,-150.0,0.00028909,2]
[374135124,1753225840638,-150.0,0.0002891,2]
[374135126,1753225840647,-882.0,0.00028914,2]
[374135128,1753225840658,-150.0,0.00028922,2]
[374135130,1753225840667,-500.0,0.00028926,2]
[374135132,1753225840677,-882.0,0.00028935,2]
[374135134,1753225840686,-150.0,0.00028968,2]
[374135136,1753225840696,-294.24546093,0.00028969,20]
[374135138,1753225840705,-150.0,0.00028993,2]
[374135140,1753225840714,-150.0,0.00028994,2]
[374135142,1753225840724,-150.0,0.00029012,2]
[374135144,1753225840733,-150.0,0.00029026,2]
[374135146,1753225840743,-689.832,0.00029043,21]
[374135148,1753225840752,-150.0,0.00029046,2]
[374135150,1753225840762,-150.0,0.00029094,2]
[374135152,1753225840771,-150.0,0.00029099,2]
[374135154,1753225840780,-150.72,0.00029129,2]
[374135156,1753225840790,-4181.034672,0.00029181,2]
[374135158,1753225840799,-500.0,0.000292,2]
[374135160,1753225840809,-294.24546093,0.0002921,20]
[374135162,1753225840818,-682.825702,0.00029222,16]
[374135164,1753225840827,-517.0,0.00029287,4]
[374135166,1753225840837,-150.0,0.0002938,2]
[374135168,1753225840846,-150.0,0.00029398,2]
[374135171,1753225840855,-294.24546093,0.00029452,21]
[374135173,1753225840864,-150.0,0.00029472,2]
[374135175,1753225840874,-296.17393393,0.00029474,2]
[374135177,1753225840883,-150.0,0.00029497,2]
[374135179,1753225840894,-400.0,0.000295,10]
[374135181,1753225840904,-226.69,0.00029517,2]
[374135183,1753225840914,-863.0,0.00029531,2]
[374135185,1753225840925,-4127.0,0.00029531,2]
[374135187,1753225840935,-6052.0,0.00029531,2]
[374135189,1753225840945,-11163.525,0.00029531,2]
[374135191,1753225840955,-150.0,0.00029531,2]
[374135193,1753225840967,-150.0,0.00029596,2]
[374135195,1753225840977,-900.0,0.000296,10]
[374135197,1753225840986,-150.0,0.00029616,2]
[374135199,1753225840995,-294.24546093,0.00029693,21]
[374135201,1753225841006,-150.0,0.00029696,2]
[374135203,1753225841017,-150.0,0.00029699,2]
[374135205,1753225841027,-1300.0,0.000297,10]
[374135207,1753225841036,-150.0,0.00029714,2]
[374135210,1753225841047,-4335.73295486,0.00029729,2]
[374135212,1753225841057,-150.0,0.00029745,2]
[374135214,1753225841066,-1800.0,0.000298,10]
[374135216,1753225841076,-150.0,0.00029821,2]
[374135218,1753225841085,-150.0,0.00029829,2]
[374135220,1753225841094,-150.0,0.00029834,2]
[374135222,1753225841103,-150.0,0.00029865,2]
[374135224,1753225841112,-3484.17357044,0.00029865,2]
[374135226,1753225841122,-150.0,0.00029867,2]
[374135228,1753225841132,-5150.0,0.000299,2]
[374135230,1753225841142,-2200.0,0.000299,10]
[374135232,1753225841151,-294.24546093,0.00029934,22]
[374135234,1753225841160,-207.07411281,0.00029995,15]
[374135236,1753225841169,-239.84119403,0.00030002,2]
[374135238,1753225841179,-23275.1997,0.00030005,2]
[374135240,1753225841189,-5000.0,0.00030006,2]
[374135242,1753225841198,-358.020504,0.0003001,2]
[374135244,1753225841207,-156.82216639,0.00030015,2]
[374135246,1753225841216,-10000.0,0.00030036,2]
[374135248,1753225841225,-150.0,0.00030038,2]
[374135250,1753225841234,-11181.0931371,0.00030085,2]
[374135252,1753225841244,-22362.1862742,0.00030085,2]
[374135254,1753225841253,-33543.2794113,0.00030086,2]
[374135256,1753225841262,-11181.0931371,0.00030089,2]
[374135258,1753225841271,-33543.2794113,0.0003009,2]
[374135260,1753225841281,-11181.0931371,0.00030092,2]
[374135262,1753225841290,-151.0,0.00030095,7]
[374135264,1753225841299,-151.0,0.00030095,7]
[374135266,1753225841308,-151.0,0.00030095,7]
[374135268,1753225841318,-151.0,0.00030095,7]
[374135270,1753225841331,-151.0,0.00030095,7]
[374135272,1753225841340,-151.0,0.00030095,7]
[374135274,1753225841350,-151.0,0.00030095,7]
[374135276,1753225841360,-151.0,0.00030095,7]
[374135278,1753225841372,-217.639468,0.00030095,7]
[374135280,1753225841382,-102760.73874228,0.00030095,2]
[374135283,1753225841407,-439.50532234,0.00030095,2]
[374135292,1753225841482,-1726.00720309,0.00030095,2]
[374135294,1753225841493,-4377.84293225,0.00030095,2]
[374135296,1753225841506,-1072.28009501,0.00030095,2]
[374135416,1753225842603,-666.82690802,0.00030095,2]
[374135431,1753225842730,-353.92,0.00030095,2]
[374135435,1753225842827,-12.76121683,0.00030095,2]
[374135437,1753225842878,-5727.88962227,0.00030095,2]
[374135725,1753225845652,-934.35,0.00030095,2]
[374135740,1753225845782,-714.19075267,0.00030095,2]
[374136221,1753226710456,114.75503658,0.00013699,2]
[374136222,1753226710480,38.16496342,0.00013699,2]
[374136223,1753226711188,5239.31731538,0.000154,2]
[374136224,1753226711211,2251.97813386,0.000154,2]
[374136233,1753226760677,615.18,0.00027345,120]
[374136234,1753226763230,1069.25065113,8e-05,2]
[374136238,1753226892225,1956.25349381,7.945e-05,2]
[374136239,1753226892248,1589.38289019,7.945e-05,2]
[374136274,1753226960145,-300.0,0.00016999,2]
[374136275,1753226960175,-295.70062003,0.00017,2]
[374136289,1753227031741,-300.0,0.00016999,2]
[374136290,1753227031751,-2723.6244051,0.00017,2]
[374136291,1753227031924,-2148.85864432,0.00017,2]
[374136292,1753227031936,-20550.94034133,0.00017,2]
[374136293,1753227031946,-151.0,0.00019623,2]
[374136294,1753227031956,-227.39451471,0.000199,2]
[374136295,1753227031969,-150.0,0.0002,2]
[374136296,1753227031979,-304.22,0.00020425,2]
[374136297,1753227031988,-303.24,0.00020466,2]
[374136298,1753227031999,-151.34714669,0.000205,2]
[374136299,1753227032008,-304.26,0.00020591,2]
[374136300,1753227032018,-304.62,0.00020613,2]
[374136301,1753227032028,-304.81,0.00020827,2]
[374136302,1753227032038,-305.84,0.00020827,2]
[374136303,1753227032048,-301.76,0.00020995,2]
[374136304,1753227032058,-156.16124371,0.00021,2]
[374136305,1753227032068,-300.9,0.00021174,2]
[374136306,1753227032078,-190.0,0.0002122,2]
[374136307,1753227032088,-177.57,0.0002146,2]
[374136308,1753227032099,-227.39451465,0.00021733,5]
[374136309,1753227032109,-2350.96152485,0.0002192,2]
[374136310,1753227032118,-87.40160034,0.0002205,2]
[374136319,1753227032293,-905.91421398,0.0002205,2]
[374136320,1753227032303,-177.57,0.0002319,2]
[374136321,1753227032313,-192.0,0.00023369,2]
[374136322,1753227032322,-227.39451465,0.00023567,9]
[374136323,1753227032332,-304.25,0.00024094,2]
[374136325,1753227032342,-304.2,0.00024094,2]
[374136326,1753227032351,-1083.0,0.00024443,2]
[374136327,1753227032361,-177.57,0.00024921,2]
[374136328,1753227032371,-304.98,0.00025223,2]
[374136329,1753227032381,-227.39451465,0.000254,13]
[374136331,1753227032390,-1083.0,0.00025729,2]
[374136332,1753227032400,-177.57,0.00026651,2]
[374136333,1753227032410,-784.76575069,0.00027015,2]
[374136334,1753227032421,-638.79,0.0002703,2]
[374136335,1753227032430,-937.42714978,0.00027128,2]
[374136336,1753227032443,-111.20285022,0.00027128,2]
[374136337,1753227032452,-159.01,0.00027146,2]
[374136338,1753227032462,-159.01,0.00027165,2]
[374136339,1753227032472,-159.01,0.00027184,2]
[374136340,1753227032482,-159.01,0.00027204,2]
[374136341,1753227032492,-452.27,0.00027219,2]
[374136342,1753227032502,-159.01,0.00027223,2]
[374136343,1753227032512,-227.39451465,0.00027233,16]
[374136344,1753227032522,-159.01,0.00027243,2]
[374136345,1753227032532,-168.0,0.00027243,2]
[374136346,1753227032541,-159.01,0.00027262,2]
[374136347,1753227032551,-159.01,0.00027281,2]
[374136348,1753227032560,-159.01,0.00027301,2]
[374136349,1753227032571,-167.91,0.00027318,2]
[374136350,1753227032581,-159.01,0.0002732,2]
[374136351,1753227032591,-150.0,0.00027337,2]
[374136352,1753227032600,-159.01,0.0002734,2]
[374136353,1753227032610,-1000.0,0.00027352,2]
[374136354,1753227032621,-159.01,0.00027359,2]
[374136355,1753227032632,-159.01,0.00027378,2]
[374136356,1753227032642,-159.01,0.00027398,2]
[374136357,1753227032653,-159.01,0.00027417,2]
[374136358,1753227032663,-666.0,0.00027424,3]
[374136359,1753227032673,-683.53263513,0.00027425,30]
[374136360,1753227032909,-344.89736487,0.00027425,30]
[374136361,1753227032920,-4240.14160761,0.00027554,2]
[374136362,1753227032932,-5393.04982159,0.00027554,2]
[374136363,1753227032947,-1144.12628325,0.00027554,2]
[374136364,1753227032959,-2914.53757578,0.00027554,2]
[374136365,1753227032971,-1865.17044404,0.00027554,2]
[374136371,1753227037750,-365.31581432,0.00027554,2]
[374136373,1753227037920,-1589.06555472,0.00027554,2]
[374136374,1753227037954,-497.3837515,0.00027554,2]
[374136375,1753227038026,-787.05651216,0.00027554,2]
[374136376,1753227038051,-953.82884201,0.00027554,2]
[374136377,1753227038063,-930.95795717,0.00027554,2]
[374136378,1753227038076,-2165.58583585,0.00027554,2]
[374136379,1753227038087,-9052.31416415,0.00028,2]
[374136573,1753227040090,-1477.37804138,0.00028,2]
[374136575,1753227040102,-2424.28072723,0.00028,2]
[374136577,1753227040113,-611.91610003,0.00028,2]
[374136892,1753227043100,-2157.82857883,0.00028,2]
[374136894,1753227043111,-5334.26837009,0.00028,2]
[374136896,1753227043156,-2934.94243948,0.00028,2]
[374136905,1753227043290,-594.74999985,0.00028,2]
[374137141,1753227045857,-272.29745723,0.00028,2]
[374137143,1753227045869,-938.34634999,0.00028,2]
[374137153,1753227045954,-3258.1502372,0.00028,2]
[374137156,1753227045967,-3225.9,0.00028,2]
[374137181,1753227046198,-931.27177749,0.00028,2]
[374138361,1753227239429,3688.09938861,0.00016856,2]
[374138362,1753227240522,-63.90061139,0.00016856,2]
[374138379,1753227827509,152.92,0.00013699,2]
[374138403,1753228232051,-150.0,0.0002,2]
[374138404,1753228232064,-300.51,0.0002032,2]
[374138405,1753228232076,-302.33,0.00020421,2]
[374138406,1753228232089,-46.76825,0.0002057,2]
[374138407,1753228232140,-253.63175,0.0002057,2]
[374138408,1753228232152,-302.02,0.0002057,2]
[374138409,1753228232165,-302.65,0.00020685,2]
[374138410,1753228232177,-305.46,0.00020763,2]
[374138411,1753228232190,-305.75,0.00020946,2]
[374138412,1753228232202,-300.47,0.00021013,2]
[374138413,1753228232214,-302.85,0.00021326,2]
[374138414,1753228232226,-304.95,0.00021326,2]
[374138415,1753228232238,-301.04,0.00021834,2]
[374138416,1753228232252,-300.0,0.00022,2]
[374138417,1753228232264,-153.45,0.00022311,2]
[374138418,1753228232274,-152.13,0.00022437,2]
[374138419,1753228232284,-152.0,0.00022448,2]
[374138420,1753228232293,-152.0,0.00022448,2]
[374138421,1753228232302,-152.0,0.00022448,2]
[374138422,1753228232312,-152.0,0.00022448,2]
[374138423,1753228232322,-152.0,0.00022448,2]
[374138424,1753228232332,-152.0,0.00022448,2]
[374138425,1753228232341,-152.0,0.00022448,2]
[374138426,1753228232351,-152.0,0.00022448,2]
[374138427,1753228232361,-152.0,0.00022448,2]
[374138428,1753228232371,-152.0,0.00022448,2]
[374138429,1753228232380,-152.0,0.00022448,2]
[374138430,1753228232390,-152.0,0.00022448,2]
[374138431,1753228232400,-152.0,0.00022448,2]
[374138432,1753228232410,-152.0,0.00022448,2]
[374138435,1753228232913,-152.0,0.00022448,2]
[374138436,1753228232964,-152.0,0.00022448,2]
[374138437,1753228232996,-152.0,0.00022448,2]
[374138438,1753228233012,-152.0,0.00022448,2]
[374138439,1753228233022,-152.0,0.00022448,2]
[374138440,1753228233031,-152.0,0.00022448,2]
[374138441,1753228233042,-152.0,0.00022448,2]
[374138442,1753228233051,-152.0,0.00022448,2]
[374138443,1753228233061,-153.44383043,0.00022448,2]
[374138444,1753228233070,-516.0,0.00023287,2]
[374138445,1753228233079,-153.45,0.00024042,2]
[374138446,1753228233089,-301.42,0.00024873,2]
[374138447,1753228233099,-227.39451465,0.000249,12]
[374138448,1753228233108,-161.61,0.00024999,2]
[374138449,1753228233118,-516.0,0.00025123,4]
[374138450,1753228233127,-153.45,0.00025772,2]
[374138451,1753228233137,-304.85,0.00026287,2]
[374138452,1753228233147,-300.32,0.00026287,2]
[374138453,1753228233158,-302.84,0.00026287,2]
[374138454,1753228233167,-302.18,0.00026287,2]
[374138455,1753228233176,-300.71,0.00026287,2]
[374138456,1753228233186,-516.0,0.00026958,7]
[374138457,1753228233196,-179.68,0.0002744,2]
[374138458,1753228233205,-153.45,0.00027502,2]
[374138459,1753228233215,-3450.91665018,0.0002772,2]
[374138460,1753228233224,-1000.0,0.0002785,2]
[374138461,1753228233234,-520.2,0.00027962,120]
[374138462,1753228233244,-151.0,0.00027983,2]
[374138463,1753228233256,-785.98325474,0.00027998,3]
[374138464,1753228233269,-604.0,0.00027998,3]
[374138465,1753228233291,-610.01674526,0.00027998,3]
[374138466,1753228233301,-5569.49597029,0.00028,2]
[374138467,1753228233313,-1976.89847887,0.00028,2]
[374138468,1753228233342,-532.62,0.00028,2]
[374138473,1753228238620,-1395.275616,0.00025643,2]
[374138474,1753228238632,-2480.79680576,0.00028,2]
[374138475,1753228238645,-226.54450213,0.00028,2]
[374138476,1753228238655,-1778.69895727,0.00028049,2]
[374138477,1753228238676,-959.31104273,0.00028049,2]
[374138478,1753228238686,-152.28,0.00028095,2]
[374138479,1753228238697,-152.28,0.00028141,2]
[374138480,1753228238714,-152.28,0.00028188,2]
[374138481,1753228238728,-152.28,0.00028235,2]
[374138482,1753228238738,-68.7342014,0.00028264,30]
[374138483,1753228238763,-570.075,0.00028264,30]
[374138582,1753228240055,-286.7707986,0.00028264,30]
[374138584,1753228240065,-26.7153507,0.00028282,2]
[374138586,1753228240077,-125.5646493,0.00028282,2]
[374138588,1753228240087,-138.23315094,0.00028311,7]
[374138590,1753228240099,-308.04999993,0.00028311,7]
[374138624,1753228240416,-447.69684913,0.00028311,7]
[374138626,1753228240426,-152.28,0.00028329,2]
[374138628,1753228240436,-152.28,0.00028376,2]
[374138630,1753228240446,-616.04,0.000284,2]
[374138632,1753228240456,-1065.00194426,0.00028633,2]
[374138881,1753228242954,-11.79765096,0.00028633,2]
[374138908,1753228243199,-693.20271293,0.00028633,2]